[Event "BAN-chT SAIF POWERTEC 2020"]
[Site "Dhaka"]
[Date "2021.03.28"]
[Round "10.8"]
[White "Mehdi Hasan Parag"]
[Black "Chatterjee, Debaraj"]
[Result "0-1"]
[ECO "B90"]
[WhiteElo "2204"]
[BlackElo "2223"]
[Annotator "NA"]
[PlyCount "106"]
[EventDate "2021.03.19"]
[EventType "team-tourn"]
[EventCountry "BAN"]
[SourceTitle "playchess.com"]
[Source "ChessBase"]
[SourceQuality "1"]
[TimeControl "5400+30"]

1. e4 {[%emt 0:00:00]} c5 {[%emt 0:01:37]} 2. Nf3 {[%emt 0:00:00]} d6 {[%emt 0:00:10]} 3. d4 {[%emt 0:00:00]} cxd4 {[%emt 0:00:08]} 4. Nxd4 {[%emt 0:00:00]} Nf6 {[%emt 0:00:10]} 5. Nc3 {[%emt 0:00:03]} a6 {[%emt 0:00:12]} 6. Be3 {[%emt 0:00:21]} e5 {[%emt 0:00:14]} 7. Nb3 {[%emt 0:00:03]} Be6 {[%emt 0:00:23]} 8. f3 {[%emt 0:01:24]} h5 {[%emt 0:00:15]} 9. Nd5 {[%emt 0:00:31]} Bxd5 {[%emt 0:00:19]} 10. exd5 {[%emt 0:00:03]} Nbd7 {[%emt 0:00:17]} 11. Qd2 {[%emt 0:00:40]} g6 {[%emt 0:01:38]} 12. O-O-O {[%emt 0:00:20]} Nb6 {[%emt 0:08:24]} 13. Kb1 {[%emt 0:00:49]} Nbxd5 {[%emt 0:01:19]} 14. Bg5 {[%emt 0:00:37]} Be7 {[%emt 0:02:23]} 15. h4 {[%emt 0:03:30]} O-O {[%emt 0:11:13]} 16. g4 {[%emt 0:01:36]} Nf4 {[%emt 0:00:46]} 17. Bxf4 {[%emt 0:01:13]} exf4 {[%emt 0:00:03]} 18. Qxf4 {[%emt 0:00:32]} Re8 {[%emt 0:09:26]} 19. Bc4 {[%emt 0:01:34]} b5 {[%emt 0:03:31]} 20. Bd5 {[%emt 0:02:37]} Nxd5 {[%emt 0:08:39]} 21. Rxd5 {[%emt 0:01:55]} hxg4 {[%emt 0:06:45]} 22. h5 {[%emt 0:01:29]} g5 {[%emt 0:02:41]} 23. Qxg4 {[%emt 0:00:19]} Qc8 {[%emt 0:01:56]} 24. Rxg5+ {[%emt 0:01:15]} Bxg5 {[%emt 0:00:56]} 25. Qxg5+ {[%emt 0:00:02]} Kh7 {[%emt 0:02:06]} 26. Nd4 {[%emt 0:01:32]} Re5 {[%emt 0:11:30]} 27. Qf6 {[%emt 0:05:56]} Qe8 {[%emt 0:04:18]} 28. a3 {[%emt 0:01:15]} Qe7 {[%emt 0:00:36]} 29. Qf4 {[%emt 0:01:43]} Rg8 {[%emt 0:02:08]} 30. Qd2 {[%emt 0:00:44]} Qf6 {[%emt 0:01:56]} 31. c3 {[%emt 0:00:56]} Reg5 {[%emt 0:00:37]} 32. Ka2 {[%emt 0:05:08]} Rg2 {[%emt 0:01:18]} 33. Qd3+ {[%emt 0:00:20]} Kh8 {[%emt 0:00:24]} 34. Re1 {[%emt 0:14:05]} Qg5 {[%emt 0:04:11]} 35. Nb3 {[%emt 0:03:00]} Qf4 {[%emt 0:02:41]} 36. Re2 {[%emt 0:11:02]} Rxe2 {[%emt 0:01:39]} 37. Qxe2 {[%emt 0:00:03]} Qc4 {[%emt 0:01:39]} 38. Qd1 {[%emt 0:03:21]} Qe6 {[%emt 0:02:03]} 39. Ka1 {[%emt 0:01:37]} Rg2 {[%emt 0:00:56]} 40. Nd4 {[%emt 0:03:04]} Qd5 {[%emt 0:04:59]} 41. Kb1 {[%emt 0:03:48]} Rh2 {[%emt 0:00:22]} 42. Qe1 {[%emt 0:02:35]} Qe5 {[%emt 0:00:33]} 43. Qd1 {[%emt 0:01:50]} Qd5 {[%emt 0:00:03]} 44. Qe1 {[%emt 0:00:25]} Qxh5 {[%emt 0:00:12]} 45. Qe8+ {[%emt 0:00:43]} Kg7 {[%emt 0:00:03]} 46. Qc6 {[%emt 0:03:14]} Qg6+ {[%emt 0:00:20]} 47. Qe4 {[%emt 0:01:56]} Qxe4+ {[%emt 0:00:02]} 48. fxe4 {[%emt 0:00:05]} Kf6 {[%emt 0:00:31]} 49. Ka2 {[%emt 0:00:01]} Rh4 {[%emt 0:00:39]} 50. Nf5 {[%emt 0:00:20]} Rxe4 {[%emt 0:00:32]} 51. Nxd6 {[%emt 0:00:02]} Rh4 {[%emt 0:00:16]} 52. Kb3 {[%emt 0:00:44]} Ke6 {[%emt 0:00:34]} 53. Nb7 {[%emt 0:00:07]} Kd5 {[%emt 0:00:19]} 0-1

[Event "BAN-chT SAIF POWERTEC 2020"]
[Site "Dhaka"]
[Date "2021.03.28"]
[Round "10.9"]
[White "Nayem, Haque"]
[Black "Chowdhury, Sohel"]
[Result "1-0"]
[ECO "A03"]
[WhiteElo "2040"]
[BlackElo "2149"]
[Annotator "NA"]
[PlyCount "85"]
[EventDate "2021.03.19"]
[EventType "team-tourn"]
[EventCountry "BAN"]
[SourceTitle "playchess.com"]
[Source "ChessBase"]
[SourceQuality "1"]
[TimeControl "5400+30"]

1. f4 {[%emt 0:00:00]} d5 {[%emt 0:00:34]} 2. Nf3 {[%emt 0:00:00]} c5 {[%emt 0:03:39]} 3. e3 {[%emt 0:00:01]} Nc6 {[%emt 0:00:26]} 4. Be2 {[%emt 0:00:07]} Nf6 {[%emt 0:00:22]} 5. O-O {[%emt 0:00:04]} e6 {[%emt 0:01:07]} 6. Ne5 {[%emt 0:00:08]} Qc7 {[%emt 0:03:02]} 7. Nxc6 {[%emt 0:00:27]} Qxc6 {[%emt 0:02:44]} 8. d3 {[%emt 0:00:11]} a6 {[%emt 0:03:43]} 9. Nd2 {[%emt 0:00:13]} Qc7 {[%emt 0:02:30]} 10. Nf3 {[%emt 0:00:05]} Bd6 {[%emt 0:00:32]} 11. a4 {[%emt 0:00:20]} b6 {[%emt 0:00:20]} 12. Qe1 {[%emt 0:00:19]} Bb7 {[%emt 0:07:07]} 13. Qh4 {[%emt 0:00:14]} Be7 {[%emt 0:08:01]} 14. Qh3 {[%emt 0:01:58]} Nd7 {[%emt 0:02:47]} 15. Bd2 {[%emt 0:03:41]} Bf6 {[%emt 0:02:47]} 16. c3 {[%emt 1:30:12]} O-O 17. d4 {[%emt 0:00:00]} c4 {[%emt 0:04:38]} 18. Bd1 {[%emt 0:00:00]} Rfe8 {[%emt 0:02:52]} 19. Bc2 {[%emt 0:00:00]} g6 {[%emt 0:00:16]} 20. g4 {[%emt 0:00:00]} Bg7 {[%emt 0:00:42]} 21. g5 {[%emt 0:00:00]} b5 {[%emt 0:12:03]} 22. Ne5 {[%emt 0:00:00]} f5 {[%emt 0:04:25]} 23. Qg3 {[%emt 0:00:00]} Nxe5 {[%emt 0:00:36]} 24. fxe5 {[%emt 0:00:00]} Bc6 {[%emt 0:01:05]} 25. a5 {[%emt 0:00:00]} Rab8 {[%emt 0:01:48]} 26. h4 {[%emt 0:00:00]} Bf8 {[%emt 0:02:16]} 27. h5 {[%emt 0:00:00]} Be7 {[%emt 0:01:17]} 28. Rf2 {[%emt 0:00:00]} Kf7 {[%emt 0:02:01]} 29. Bxf5 {[%emt 0:00:00]} gxf5 {[%emt 0:00:18]} 30. g6+ {[%emt 0:00:00]} Kg8 {[%emt 0:02:46]} 31. gxh7+ {[%emt 0:00:00]} Kh8 {[%emt 0:00:05]} 32. Rg2 {[%emt 0:00:00]} Bh4 {[%emt 0:05:39]} 33. Qxh4 {[%emt 0:00:00]} Kxh7 {[%emt 0:00:04]} 34. Kf2 {[%emt 0:00:00]} Qe7 {[%emt 0:02:08]} 35. Qf4 {[%emt 0:00:00]} Rg8 {[%emt 0:03:23]} 36. Rg6 {[%emt 0:00:00]} Rxg6 {[%emt 0:06:41]} 37. hxg6+ {[%emt 0:00:00]} Kg8 {[%emt 0:05:32]} 38. g7 {[%emt 0:00:00]} Kf7 {[%emt 0:01:17]} 39. Qh6 {[%emt 0:00:00]} Rg8 {[%emt 0:00:25]} 40. Qh5+ {[%emt 0:00:00]} Kxg7 {[%emt 0:00:57]} 41. Rg1+ {[%emt 0:00:00]} Kf8 {[%emt 0:01:19]} 42. Qh6+ {[%emt 0:00:00]} Rg7 {[%emt 0:04:21]} 43. Qh8+ {[%emt 0:00:00]} 1-0

[Event "BAN-chT SAIF POWERTEC 2020"]
[Site "Dhaka"]
[Date "2021.03.28"]
[Round "10.9"]
[White "Jabed Al Azad"]
[Black "Aronyak Ghosh"]
[Result "0-1"]
[ECO "B04"]
[WhiteElo "2002"]
[BlackElo "2436"]
[Annotator "ChessBase"]
[PlyCount "84"]
[EventDate "2021.03.19"]
[EventType "team-tourn"]
[EventCountry "BAN"]
[SourceTitle "playchess.com"]
[Source "ChessBase"]
[SourceQuality "1"]
[TimeControl "5400+30"]

1. e4 {[%emt 0:00:00]} Nf6 {[%emt 0:00:09]} 2. e5 {[%emt 0:00:00]} Nd5 {[%emt 0:00:09]} 3. d4 {[%emt 0:00:15]} d6 {[%emt 0:00:13]} 4. Nf3 {[%emt 0:00:13]} dxe5 {[%emt 0:01:21]} 5. Nxe5 {[%emt 0:00:17]} c6 {[%emt 0:00:05]} 6. Bc4 {[%emt 0:00:44]} g6 {[%emt 0:01:54]} 7. Qf3 {[%emt 0:01:19]} Be6 {[%emt 0:01:20]} 8. O-O {[%emt 0:00:22]} Nd7 {[%emt 0:01:14]} 9. Nd3 {[%emt 0:01:51]} Bg7 {[%emt 0:02:11]} 10. c3 {[%emt 0:00:12]} O-O {[%emt 0:01:15]} 11. Bb3 {[%emt 0:00:06]} a5 {[%emt 0:03:24]} 12. Nf4 {[%emt 0:03:04]} Nxf4 {[%emt 0:02:02]} 13. Bxf4 {[%emt 0:00:08]} Bf5 {[%emt 0:02:55]} 14. a4 {[%emt 0:05:51]} e5 {[%emt 0:01:49]} 15. dxe5 {[%emt 0:00:38]} Nxe5 {[%emt 0:01:46]} 16. Bxe5 {[%emt 0:03:56]} Bxe5 {[%emt 0:00:04]} 17. Na3 {[%emt 0:00:20]} Qb6 {[%emt 0:05:30]} 18. Nc4 {[%emt 0:00:42]} Bxh2+ {[%emt 0:02:00]} 19. Kxh2 {[%emt 0:00:15]} Qxb3 {[%emt 0:00:03]} 20. Ne3 {[%emt 0:06:07]} Be6 {[%emt 0:01:49]} 21. Qf6 {[%emt 0:01:25]} Qb6 {[%emt 0:04:06]} 22. Rad1 {[%emt 0:00:34]} Rad8 {[%emt 0:00:39]} 23. g4 {[%emt 0:00:29]} Rfe8 {[%emt 0:04:26]} 24. Kg2 {[%emt 0:00:42]} Rxd1 {[%emt 0:01:40]} 25. Rxd1 {[%emt 0:00:20]} Qc5 {[%emt 0:01:46]} 26. Rd8 {[%emt 0:01:22]} Rxd8 {[%emt 0:03:10]} 27. Qxd8+ {[%emt 0:00:08]} Kg7 {[%emt 0:00:08]} 28. Kg3 {[%emt 0:01:59]} Qe5+ {[%emt 0:02:29]} 29. Kg2 {[%emt 0:00:24]} Bd5+ {[%emt 0:03:49]} 30. Kf1 {[%emt 0:02:21]} Qe4 {[%emt 0:06:42]} 31. Ke2 {[%emt 0:04:05]} Be6 {[%emt 0:07:17]} 32. Qg5 {[%emt 0:06:38]} h6 {[%emt 0:04:39]} 33. Qxa5 {[%emt 0:01:51]} Bxg4+ {[%emt 0:00:19]} 34. Kd2 {[%emt 0:00:02]} Qf4 {[%emt 0:01:38]} 35. Ke1 {[%emt 0:00:34]} Bf3 {[%emt 0:00:24]} 36. c4 {[%emt 0:02:21]} h5 {[%emt 0:01:25]} 37. Qc3+ {[%emt 0:00:20]} Kg8 {[%emt 0:01:08]} 38. Qb4 {[%emt 0:00:33]} Qd4 {[%emt 0:02:35]} 39. Kf1 {[%emt 0:02:39]} Qd3+ {[%emt 0:01:11]} 40. Kg1 {[%emt 0:00:03]} Qb1+ {[%emt 0:00:06]} 41. Kh2 {[%emt 0:00:06]} Qh1+ {[%emt 0:00:17]} 42. Kg3 {[%emt 0:00:31]} g5 {[%emt 0:00:12]} 0-1

[Event "BAN-chT SAIF POWERTEC 2020"]
[Site "Dhaka"]
[Date "2021.03.28"]
[Round "10.10"]
[White "Puranik, Abhimanyu"]
[Black "Sumit, Kumar"]
[Result "1-0"]
[ECO "A29"]
[WhiteElo "2584"]
[BlackElo "2196"]
[Annotator "ChessBase"]
[PlyCount "81"]
[EventDate "2021.03.19"]
[EventType "team-tourn"]
[EventCountry "BAN"]
[SourceTitle "playchess.com"]
[Source "ChessBase"]
[SourceQuality "1"]
[TimeControl "5400+30"]

1. c4 {[%emt 0:00:00]} e5 {[%emt 0:00:00]} 2. Nc3 {[%emt 0:00:00]} Nf6 {[%emt 0:00:18]} 3. Nf3 {[%emt 0:00:05]} Nc6 {[%emt 0:00:37]} 4. g3 {[%emt 0:00:27]} Bc5 {[%emt 0:02:21]} 5. Bg2 {[%emt 0:01:10]} d6 {[%emt 0:01:30]} 6. d3 {[%emt 0:00:35]} a5 {[%emt 0:01:43]} 7. O-O {[%emt 0:01:05]} O-O {[%emt 0:00:32]} 8. b3 {[%emt 0:07:41]} h6 {[%emt 0:04:47]} 9. e3 {[%emt 0:01:11]} Ba7 {[%emt 0:07:44]} 10. Bb2 {[%emt 0:00:37]} Be6 {[%emt 0:03:36]} 11. Nb5 {[%emt 0:04:32]} Re8 {[%emt 0:06:09]} 12. d4 {[%emt 0:11:11]} e4 {[%emt 0:03:06]} 13. Nd2 {[%emt 0:06:17]} Bf5 {[%emt 0:00:18]} 14. a3 {[%emt 0:03:24]} Qe7 {[%emt 0:09:10]} 15. d5 {[%emt 0:06:52]} Nb8 {[%emt 0:02:45]} 16. Bxf6 {[%emt 0:00:43]} gxf6 {[%emt 0:00:10]} 17. Qh5 {[%emt 0:02:18]} Bg6 {[%emt 0:04:41]} 18. Qxh6 {[%emt 0:00:05]} Bb6 {[%emt 0:01:10]} 19. Nc3 {[%emt 0:01:00]} f5 {[%emt 0:03:18]} 20. Ne2 {[%emt 0:06:07]} Nd7 {[%emt 0:05:43]} 21. Nf4 {[%emt 0:00:37]} Ne5 {[%emt 0:00:32]} 22. Nh5 {[%emt 0:02:22]} Bxh5 {[%emt 0:00:28]} 23. Qxh5 {[%emt 0:00:04]} Qd7 {[%emt 0:12:18]} 24. Bh3 {[%emt 0:07:39]} Ng4 {[%emt 0:01:01]} 25. Kg2 {[%emt 0:01:23]} Re7 {[%emt 0:07:31]} 26. Rh1 {[%emt 0:01:47]} Re5 {[%emt 0:07:14]} 27. Qg5+ {[%emt 0:01:13]} Kh7 {[%emt 0:04:00]} 28. Bxg4 {[%emt 0:00:47]} fxg4 {[%emt 0:00:03]} 29. Qf6 {[%emt 0:03:08]} Qe7 {[%emt 0:07:20]} 30. Qf4 {[%emt 0:00:19]} Qg5 {[%emt 0:01:51]} 31. h3 {[%emt 0:01:51]} Qxf4 {[%emt 0:00:39]} 32. gxf4 {[%emt 0:00:04]} Re7 {[%emt 0:00:22]} 33. hxg4+ {[%emt 0:00:03]} Kg7 {[%emt 0:00:06]} 34. Kg3 {[%emt 0:00:31]} f5 {[%emt 0:01:13]} 35. Rh5 {[%emt 0:00:51]} fxg4 {[%emt 0:00:33]} 36. Kxg4 {[%emt 0:00:25]} Bc5 {[%emt 0:01:26]} 37. Rah1 {[%emt 0:01:26]} Rg8 {[%emt 0:00:42]} 38. Rg5+ {[%emt 0:00:11]} Kf8 {[%emt 0:00:06]} 39. Rxg8+ {[%emt 0:00:20]} Kxg8 {[%emt 0:00:02]} 40. Ra1 {[%emt 0:00:26]} Kf7 {[%emt 0:02:21]} 41. Kf5 {[%emt 0:00:04]} 1-0

[Event "BAN-chT SAIF POWERTEC 2020"]
[Site "Dhaka"]
[Date "2021.03.28"]
[Round "10.10"]
[White "Subhayan Kundu"]
[Black "Erigaisi Arjun"]
[Result "0-1"]
[ECO "C01"]
[WhiteElo "2305"]
[BlackElo "2559"]
[Annotator "ChessBase"]
[PlyCount "56"]
[EventDate "2021.03.19"]
[EventType "team-tourn"]
[EventCountry "BAN"]
[SourceTitle "playchess.com"]
[Source "ChessBase"]
[SourceQuality "1"]
[TimeControl "5400+30"]

1. e4 {[%emt 0:00:00]} e6 {[%emt 0:00:00]} 2. d4 {[%emt 0:00:00]} d5 {[%emt 0:00:00]} 3. Nc3 {[%emt 0:00:13]} Bb4 {[%emt 0:00:00]} 4. exd5 {[%emt 0:00:33]} exd5 {[%emt 0:00:00]} 5. Bd3 {[%emt 0:00:02]} Nc6 {[%emt 0:00:21]} 6. Nf3 {[%emt 0:02:51]} Bg4 {[%emt 0:01:25]} 7. Be3 {[%emt 0:01:42]} Nge7 {[%emt 0:02:05]} 8. h3 {[%emt 0:02:07]} Bh5 {[%emt 0:00:28]} 9. O-O {[%emt 0:01:37]} Qd7 {[%emt 0:06:58]} 10. a3 {[%emt 0:04:46]} Bd6 {[%emt 0:00:37]} 11. Nb5 {[%emt 0:01:55]} O-O-O {[%emt 0:01:48]} 12. b3 {[%emt 0:21:39]} a6 {[%emt 0:13:33]} 13. Nxd6+ {[%emt 0:00:17]} Qxd6 {[%emt 0:00:05]} 14. g3 {[%emt 0:10:00]} h6 {[%emt 0:05:33]} 15. Kg2 {[%emt 0:02:03]} Qf6 {[%emt 0:09:32]} 16. c3 {[%emt 0:02:06]} g5 {[%emt 0:01:48]} 17. g4 {[%emt 0:05:25]} Bg6 {[%emt 0:00:11]} 18. Ne5 {[%emt 0:00:26]} Nxe5 {[%emt 0:03:53]} 19. dxe5 {[%emt 0:00:16]} Qc6 {[%emt 0:00:05]} 20. Bd4 {[%emt 0:03:01]} h5 {[%emt 0:06:48]} 21. f4 {[%emt 0:03:35]} Bxd3 {[%emt 0:03:00]} 22. Qxd3 {[%emt 0:00:01]} hxg4 {[%emt 0:00:51]} 23. hxg4 {[%emt 0:00:44]} gxf4 {[%emt 0:01:24]} 24. Rxf4 {[%emt 0:00:28]} Ng6 {[%emt 0:09:25]} 25. Rxf7 {[%emt 0:10:54]} Qe6 {[%emt 0:02:27]} 26. Rf5 {[%emt 0:00:21]} Rdg8 {[%emt 0:07:16]} 27. Kg3 {[%emt 0:01:18]} Ne7 {[%emt 0:00:44]} 28. Raf1 {[%emt 0:02:28]} Qh6 {[%emt 0:00:17]} 0-1

[Event "BAN-chT SAIF POWERTEC 2020"]
[Site "Dhaka"]
[Date "2021.03.28"]
[Round "10.11"]
[White "Dhulipalla Bala Chandra Prasad"]
[Black "Shawket Bin, Osman Shaon"]
[Result "1-0"]
[ECO "A11"]
[WhiteElo "2441"]
[BlackElo "1982"]
[Annotator "ChessBase"]
[PlyCount "75"]
[EventDate "2021.03.19"]
[EventType "team-tourn"]
[EventCountry "BAN"]
[SourceTitle "playchess.com"]
[Source "ChessBase"]
[SourceQuality "1"]
[TimeControl "5400+30"]

1. c4 {[%emt 1:30:30]} c6 {[%emt 1:30:30]} 2. Nf3 {[%emt 0:00:30]} d5 {[%emt 0:00:30]} 3. g3 {[%emt 0:00:30]} Nf6 {[%emt 0:00:30]} 4. Bg2 {[%emt 0:00:30]} Nbd7 {[%emt 0:00:30]} 5. O-O {[%emt 0:00:30]} dxc4 {[%emt 0:00:30]} 6. Na3 {[%emt 0:00:30]} Nb6 {[%emt 0:00:30]} 7. Qc2 {[%emt 0:00:30]} Be6 {[%emt 0:00:30]} 8. b3 {[%emt 0:00:30]} cxb3 {[%emt 0:00:30]} 9. axb3 {[%emt 0:00:30]} g6 {[%emt 0:00:30]} 10. e4 {[%emt 0:00:30]} Bg7 {[%emt 0:00:30]} 11. d4 {[%emt 0:00:30]} O-O {[%emt 0:00:30]} 12. Bb2 {[%emt 0:00:30]} h6 {[%emt 0:00:30]} 13. Nc4 {[%emt 0:00:30]} Nfd7 {[%emt 0:00:30]} 14. Na5 {[%emt 0:00:30]} Qc8 {[%emt 0:00:30]} 15. h3 {[%emt 0:00:30]} Nb8 {[%emt 0:00:30]} 16. Kh2 {[%emt 0:00:30]} Na6 {[%emt 0:00:30]} 17. Ne5 {[%emt 0:00:30]} Nd7 {[%emt 0:00:30]} 18. Nd3 {[%emt 0:00:30]} Nb6 {[%emt 0:00:30]} 19. Nf4 {[%emt 0:00:30]} Bd7 {[%emt 0:00:30]} 20. Qe2 {[%emt 0:00:30]} Nc7 {[%emt 0:00:30]} 21. Rac1 {[%emt 0:00:30]} Qb8 {[%emt 0:00:30]} 22. Nd3 {[%emt 0:00:30]} Nb5 {[%emt 0:00:30]} 23. Qe3 {[%emt 0:00:30]} Rd8 {[%emt 0:00:30]} 24. Rfd1 {[%emt 0:00:30]} Bc8 {[%emt 0:00:30]} 25. Nc5 {[%emt 0:00:30]} Nd7 {[%emt 0:00:30]} 26. Nd3 {[%emt 0:00:30]} Nf8 {[%emt 0:00:30]} 27. Ne5 {[%emt 0:00:30]} Ne6 {[%emt 0:00:30]} 28. f4 {[%emt 0:00:30]} Qd6 {[%emt 0:00:30]} 29. d5 {[%emt 0:00:30]} cxd5 {[%emt 0:00:30]} 30. Rxd5 {[%emt 0:00:30]} Qb6 {[%emt 0:00:30]} 31. Qd2 {[%emt 0:00:30]} Rxd5 {[%emt 0:00:30]} 32. exd5 {[%emt 0:00:30]} Ned4 {[%emt 0:00:30]} 33. Nac4 {[%emt 0:00:30]} Qc5 {[%emt 0:00:30]} 34. b4 {[%emt 0:00:30]} Qc7 {[%emt 0:00:30]} 35. Bxd4 {[%emt 0:00:30]} Nxd4 {[%emt 0:00:30]} 36. Qxd4 {[%emt 0:00:30]} b5 {[%emt 0:00:30]} 37. d6 {[%emt 0:00:30]} exd6 {[%emt 0:00:30]} 38. Qxd6 {[%emt 0:00:30]} 1-0

[Event "BAN-chT SAIF POWERTEC 2020"]
[Site "Dhaka"]
[Date "2021.03.28"]
[Round "10.11"]
[White "Kaustuv, Kundu"]
[Black "Narayanan.S.L"]
[Result "1/2-1/2"]
[ECO "A13"]
[WhiteElo "2301"]
[BlackElo "2618"]
[Annotator "ChessBase"]
[PlyCount "52"]
[EventDate "2021.03.19"]
[EventType "team-tourn"]
[EventCountry "BAN"]
[SourceTitle "playchess.com"]
[Source "ChessBase"]
[SourceQuality "1"]
[TimeControl "5400+30"]

1. c4 {[%emt 1:30:30]} e6 {[%emt 1:30:30]} 2. g3 {[%emt 0:00:30]} d5 {[%emt 0:00:30]} 3. Bg2 {[%emt 0:00:30]} d4 {[%emt 0:00:30]} 4. Nf3 {[%emt 0:00:30]} c5 {[%emt 0:00:30]} 5. O-O {[%emt 0:00:30]} Ne7 {[%emt 0:00:30]} 6. e3 {[%emt 0:00:30]} Nec6 {[%emt 0:00:30]} 7. d3 {[%emt 0:00:30]} Be7 {[%emt 0:00:30]} 8. Na3 {[%emt 0:00:30]} O-O {[%emt 0:00:30]} 9. Nc2 {[%emt 0:00:30]} a5 {[%emt 0:00:30]} 10. e4 {[%emt 0:00:30]} e5 {[%emt 0:00:30]} 11. Nd2 {[%emt 0:00:30]} a4 {[%emt 0:00:30]} 12. f4 {[%emt 0:00:30]} exf4 {[%emt 0:00:30]} 13. gxf4 {[%emt 0:00:30]} f5 {[%emt 0:00:30]} 14. Ne1 {[%emt 0:00:30]} Kh8 {[%emt 0:00:30]} 15. exf5 {[%emt 0:00:30]} Bxf5 {[%emt 0:00:30]} 16. Ne4 {[%emt 0:00:30]} Qd7 {[%emt 0:00:30]} 17. Bd2 {[%emt 0:00:30]} a3 {[%emt 0:00:30]} 18. bxa3 {[%emt 0:00:30]} Rxa3 {[%emt 0:00:30]} 19. Qc1 {[%emt 0:00:30]} Ra8 {[%emt 0:00:30]} 20. Qb2 {[%emt 0:00:30]} Na6 {[%emt 0:00:30]} 21. Rb1 {[%emt 0:00:30]} Rab8 {[%emt 0:00:30]} 22. a3 {[%emt 0:00:30]} Nc7 {[%emt 0:00:30]} 23. Qb6 {[%emt 0:00:30]} Na8 {[%emt 0:00:30]} 24. Qb5 {[%emt 0:00:30]} Nc7 {[%emt 0:00:30]} 25. Qb6 {[%emt 0:00:30]} Na8 {[%emt 0:00:30]} 26. Qb5 {[%emt 0:00:30]} Nc7 {[%emt 0:00:30]} 1/2-1/2

[Event "BAN-chT SAIF POWERTEC 2020"]
[Site "Dhaka"]
[Date "2021.03.28"]
[Round "10.12"]
[White "Chatterjee, Debaraj"]
[Black "Sultana, Sharmin Shirin"]
[Result "1-0"]
[ECO "D11"]
[WhiteElo "2223"]
[BlackElo "2002"]
[Annotator "NA"]
[PlyCount "117"]
[EventDate "2021.03.19"]
[EventType "team-tourn"]
[EventCountry "BAN"]
[SourceTitle "playchess.com"]
[Source "ChessBase"]
[SourceQuality "1"]
[TimeControl "5400+30"]

1. d4 {[%emt 1:30:30]} d5 {[%emt 1:30:30]} 2. c4 {[%emt 0:00:30]} c6 {[%emt 0:00:30]} 3. Nf3 {[%emt 0:00:30]} Nf6 {[%emt 0:00:30]} 4. e3 {[%emt 0:00:30]} a6 {[%emt 0:00:30]} 5. Nbd2 {[%emt 0:00:30]} b5 {[%emt 0:00:30]} 6. b3 {[%emt 0:00:30]} Bg4 {[%emt 0:00:30]} 7. Be2 {[%emt 0:00:30]} e6 {[%emt 0:00:30]} 8. O-O {[%emt 0:00:30]} Bd6 {[%emt 0:00:30]} 9. a4 {[%emt 0:00:30]} b4 {[%emt 0:00:30]} 10. h3 {[%emt 0:00:30]} Bh5 {[%emt 0:00:30]} 11. Bb2 {[%emt 0:00:30]} O-O $14 {[%emt 0:00:30]} 12. Rc1 {[%emt 0:00:30]} a5 {[%emt 0:00:30]} 13. cxd5 {[%emt 0:00:30]} cxd5 {[%emt 0:00:30]} 14. Ne5 {[%emt 0:00:30]} Bg6 {[%emt 0:00:30]} 15. Bb5 {[%emt 0:00:30]} Nfd7 {[%emt 0:00:30]} 16. Qe2 {[%emt 0:00:30]} Ra7 {[%emt 0:00:30]} 17. Bxd7 {[%emt 0:00:30]} Bxe5 {[%emt 0:00:30]} 18. Bxe6 {[%emt 0:00:30]} Bc7 {[%emt 0:00:30]} 19. Bg4 {[%emt 0:00:30]} Qd6 {[%emt 0:00:30]} 20. g3 {[%emt 0:00:30]} Nd7 {[%emt 0:00:30]} 21. Bf3 {[%emt 0:00:30]} Qe6 {[%emt 0:00:30]} 22. Bg2 {[%emt 0:00:30]} Nf6 {[%emt 0:00:30]} 23. Qb5 {[%emt 0:00:30]} Bxg3 {[%emt 0:00:30]} 24. fxg3 {[%emt 0:00:30]} Qxe3+ {[%emt 0:00:30]} 25. Rf2 {[%emt 0:00:30]} Qxg3 {[%emt 0:00:30]} 26. Qe2 {[%emt 0:00:30]} Ne4 {[%emt 0:00:30]} 27. Rf3 {[%emt 0:00:30]} Qg5 {[%emt 0:00:30]} 28. Nxe4 {[%emt 0:00:30]} Bxe4 {[%emt 0:00:30]} 29. Qe3 {[%emt 0:00:30]} Qh5 {[%emt 0:00:30]} 30. Rg3 {[%emt 0:00:30]} f5 {[%emt 0:00:30]} 31. Rf1 {[%emt 0:00:30]} Raf7 {[%emt 0:00:30]} 32. Qf4 {[%emt 0:00:30]} Qe2 {[%emt 0:00:30]} 33. Bc1 {[%emt 0:00:30]} Qc2 {[%emt 0:00:30]} 34. Qe5 {[%emt 0:00:30]} g6 {[%emt 0:00:30]} 35. Bh6 {[%emt 0:00:30]} Rc8 {[%emt 0:00:30]} 36. Qe6 {[%emt 0:00:30]} Qc6 {[%emt 0:00:30]} 37. Qxc6 {[%emt 0:00:30]} Rxc6 38. Bxe4 {[%emt 0:00:30]} dxe4 {[%emt 0:01:00]} 39. Bf4 {[%emt 0:00:30]} Rd7 {[%emt 0:00:30]} 40. Be5 {[%emt 0:00:30]} Kf7 {[%emt 0:00:30]} 41. Kf2 {[%emt 0:00:30]} Ke6 {[%emt 0:00:30]} 42. Ke3 {[%emt 0:00:30]} Rd8 {[%emt 0:00:30]} 43. Kf4 {[%emt 0:00:30]} Rc2 {[%emt 0:00:30]} 44. h4 {[%emt 0:00:30]} Rdc8 {[%emt 0:00:30]} 45. h5 {[%emt 0:00:30]} Kf7 {[%emt 0:00:30]} 46. hxg6+ {[%emt 0:00:30]} hxg6 47. Rh3 {[%emt 0:00:30]} R8c3 {[%emt 0:01:00]} 48. Rh7+ {[%emt 0:00:30]} Ke6 49. d5+ {[%emt 0:00:30]} Kxd5 {[%emt 0:01:00]} 50. Bxc3 {[%emt 0:00:30]} bxc3 {[%emt 0:00:30]} 51. Rc7 {[%emt 0:00:30]} Kd4 {[%emt 0:00:30]} 52. Rd1+ {[%emt 0:00:30]} Rd2 {[%emt 0:00:30]} 53. Rd7+ {[%emt 0:00:30]} Kc5 {[%emt 0:00:30]} 54. R1xd2 {[%emt 0:00:30]} cxd2 {[%emt 0:00:30]} 55. Rxd2 {[%emt 0:00:30]} Kb4 {[%emt 0:00:30]} 56. Rd5 {[%emt 0:00:30]} g5+ {[%emt 0:00:30]} 57. Kxf5 {[%emt 0:00:30]} e3 {[%emt 0:00:30]} 58. Rb5+ {[%emt 0:00:30]} Kc3 {[%emt 0:00:30]} 59. Rxa5 {[%emt 0:00:30]} 1-0